bitfinex/quotes_SOLUSD_20250419
["timestamp","ask_amount","ask_price","bid_price","bid_amount"]
[1745024510167,3.96901793,134.13,133.44,9.46385211]
[1745024517582,3.96901793,134.13,133.43,24.06375835]
[1745024517876,3.96901793,134.13,133.44,9.46385211]
[1745024522981,3.96901793,134.13,133.43,24.06375835]
[1745024523285,3.96901793,134.13,133.44,9.46385211]
[1745024528396,3.96901793,134.13,133.43,24.06375835]
[1745024528705,3.96901793,134.13,133.44,9.46385211]
[1745024533901,3.96901793,134.13,133.43,24.06375835]
[1745024534087,3.96901793,134.13,133.44,9.46385211]
[1745024539210,3.96901793,134.13,133.43,24.06375835]
[1745024539509,3.96901793,134.13,133.44,9.46385211]
[1745024544714,3.96901793,134.13,133.43,24.06375835]
[1745024545010,3.96901793,134.13,133.44,9.46385211]
[1745024552319,3.96901793,134.13,133.43,6.23402275]
[1745024552517,3.96901793,134.13,133.44,9.46385211]
[1745024562326,3.96901793,134.13,133.43,23.63745768]
[1745024562512,3.96901793,134.13,133.44,9.46385211]
[1745024571739,3.96901793,134.13,133.43,23.63745768]
[1745024572039,3.96901793,134.13,133.44,9.46385211]
[1745024577157,3.96901793,134.13,133.43,23.63745768]
[1745024577357,3.96901793,134.13,133.44,9.46385211]
[1745024582470,3.96901793,134.13,133.43,23.63745768]
[1745024582655,3.96901793,134.13,133.44,9.46385211]
[1745024594784,3.96901793,134.13,133.43,23.63745768]
[1745024594968,3.96901793,134.13,133.44,9.46385211]
[1745024600101,3.96901793,134.13,133.43,23.63745768]
[1745024600397,3.96901793,134.13,133.44,9.46385211]
[1745024605503,3.96901793,134.13,133.43,23.63745768]
[1745024605801,3.96901793,134.13,133.44,9.46385211]
[1745024611010,3.96901793,134.13,133.43,23.63745768]
[1745024611212,3.96901793,134.13,133.44,9.46385211]
[1745024620024,3.96901793,134.13,133.43,17.49955423]
[1745024620322,3.96901793,134.13,133.44,9.46385211]
[1745024625425,3.96901793,134.13,133.43,17.49955423]
[1745024625607,3.96901793,134.13,133.44,9.46385211]
[1745024635629,3.96901793,134.13,133.43,17.49955423]
[1745024635830,3.96901793,134.13,133.44,9.46385211]
[1745024640943,3.96901793,134.13,133.43,17.49955423]
[1745024641121,3.96901793,134.13,133.44,9.46385211]
[1745024646244,3.96901793,134.13,133.43,17.49955423]
[1745024646421,3.96901793,134.13,133.44,9.46385211]
[1745024655652,3.96901793,134.13,133.43,17.49955423]
[1745024655851,3.96901793,134.13,133.44,9.46385211]
[1745024660961,3.96901793,134.13,133.43,17.49955423]
[1745024661137,3.96901793,134.13,133.44,9.46385211]
[1745024666458,3.96901793,134.13,133.43,17.49955423]
[1745024666660,3.96901793,134.13,133.44,9.46385211]
[1745024671765,3.96901793,134.13,133.43,17.49955423]
[1745024672062,3.96901793,134.13,133.44,9.46385211]
[1745024678467,3.96901793,134.13,133.41,0.03]
[1745024678667,3.96901793,134.13,133.42,9.46385211]
[1745024683975,3.96901793,134.13,133.41,18.85595506]
[1745024684168,3.96901793,134.13,133.42,9.46385211]
[1745024689581,3.96901793,134.13,133.41,18.85595506]
[1745024689878,3.96901793,134.13,133.42,9.46385211]
[1745024694986,3.96901793,134.13,133.41,18.85595506]
[1745024695179,3.96901793,134.13,133.42,9.46385211]
[1745024699098,20.5278949,134.19,133.42,9.46385211]
[1745024699267,18.2662949,134.19,133.42,9.46385211]
[1745024699586,16.2538949,134.19,133.42,9.46385211]
[1745024700188,14.4631949,134.19,133.42,9.46385211]
[1745024700787,12.8697949,134.19,133.42,9.46385211]
[1745024701383,11.4518949,134.19,133.42,9.46385211]
[1745024707909,11.4518949,134.19,133.41,18.85595506]
[1745024708093,11.4518949,134.19,133.42,9.46385211]
[1745024713213,28.27533794,134.24,133.42,6.04699317]
[1745024713416,0.03,134.27,133.43,9.46385211]
[1745024713597,5.97670748,134.42,133.43,9.46385211]
[1745024713997,31.85303105,134.63,133.43,9.46385211]
[1745024715416,35.61913352,134.63,133.41,24.82660343]
[1745024715606,41.54252082,134.63,133.41,24.82660343]
[1745024715801,39.04252082,134.63,133.42,8.89907433]
[1745024716003,39.04252082,134.63,133.44,0.22183099]
[1745024716306,39.04252082,134.63,133.45,8.89907433]
[1745024721414,39.04252082,134.63,134.25,1.2617]
[1745024721618,39.04252082,134.63,134.25,20.69200547]
[1745024724121,39.04252082,134.63,134.25,24.49049194]
[1745024724622,39.04252082,134.63,134.25,30.63814076]
[1745024725023,9.68948977,134.63,134.25,30.63814076]
[1745024725217,729.48337994,137.85,134.25,30.63814076]
[1745024725719,8.22560117,135.0,134.25,30.63814076]
[1745024725933,729.48337994,137.85,134.25,30.63814076]
[1745024726110,13.931,134.96,134.25,30.63814076]
[1745024727523,8.22560117,134.93,134.25,30.63814076]
[1745024727814,43.12400478,134.94,134.25,30.63814076]
[1745024728022,45.75455464,134.94,134.25,30.63814076]
[1745024732012,8.18949006,134.93,134.25,30.63814076]
[1745024733029,8.18949006,134.93,134.25,26.83965429]
[1745024733831,8.18949006,134.93,134.25,20.69200547]
[1745024739434,45.75455464,134.94,134.25,20.69200547]
[1745024739628,8.18949006,134.93,134.25,20.69200547]
[1745024755948,45.68240259,134.94,134.25,20.69200547]
[1745024756150,8.18949006,134.93,134.25,20.69200547]
[1745024763162,45.68240259,134.94,134.25,20.69200547]
[1745024763664,8.18949006,134.93,134.25,20.69200547]
[1745024763854,45.68240259,134.94,134.25,20.69200547]
[1745024764364,53.87189265,134.94,134.25,20.69200547]
[1745024764662,8.18949006,134.93,134.25,20.69200547]
[1745024766570,8.18949006,134.93,134.25,1.2617]
[1745024771371,13.86457349,134.94,134.25,1.2617]
[1745024790285,6.05839781,134.94,134.25,1.2617]
[1745024790469,17.58454021,134.96,134.25,1.2617]
[1745024792683,23.6783668,134.96,134.25,1.2617]
[1745024797383,8.1898712,134.93,134.25,1.2617]
[1745024798385,42.35452466,134.94,134.25,1.2617]
[1745024799388,8.1898712,134.93,134.25,1.2617]
[1745024811494,42.35452466,134.94,134.25,1.2617]
[1745024811681,8.1898712,134.93,134.25,1.2617]
[1745024816795,42.35452466,134.94,134.25,1.2617]
[1745024817091,8.1898712,134.93,134.25,1.2617]
[1745024825517,42.35452466,134.94,134.25,1.2617]
[1745024825716,8.1898712,134.93,134.25,1.2617]
[1745024830827,42.35452466,134.94,134.25,1.2617]
[1745024831016,8.1898712,134.93,134.25,1.2617]
[1745024836133,42.35452466,134.94,134.25,1.2617]
[1745024836427,8.1898712,134.93,134.25,1.2617]
[1745024841531,42.35452466,134.94,134.25,1.2617]
[1745024841711,8.1898712,134.93,134.25,1.2617]
[1745024846844,42.35452466,134.94,134.25,1.2617]
[1745024847037,8.1898712,134.93,134.25,1.2617]
[1745024852144,42.35452466,134.94,134.25,1.2617]
[1745024852347,8.1898712,134.93,134.25,1.2617]
[1745024857448,42.35452466,134.94,134.25,1.2617]
[1745024857650,8.1898712,134.93,134.25,1.2617]
[1745024862757,42.35452466,134.94,134.25,1.2617]
[1745024862950,8.1898712,134.93,134.25,1.2617]
[1745024868076,42.35452466,134.94,134.25,1.2617]
[1745024868269,8.1898712,134.93,134.25,1.2617]
[1745024873381,42.35452466,134.94,134.25,1.2617]
[1745024873674,8.1898712,134.93,134.25,1.2617]
[1745024878783,42.35452466,134.94,134.25,1.2617]
[1745024878963,8.1898712,134.93,134.25,1.2617]
[1745024884087,42.35452466,134.94,134.25,1.2617]
[1745024884270,8.1898712,134.93,134.25,1.2617]
[1745024889388,42.35452466,134.94,134.25,1.2617]
[1745024889574,8.1898712,134.93,134.25,1.2617]
[1745024894691,42.35452466,134.94,134.25,1.2617]
[1745024894890,8.1898712,134.93,134.25,1.2617]
[1745024907202,42.35452466,134.94,134.25,1.2617]
[1745024907397,8.1898712,134.93,134.25,1.2617]
[1745024912807,9.17741326,134.94,134.25,1.2617]
[1745024912988,8.1898712,134.93,134.25,1.2617]
[1745024918312,38.34528216,134.94,134.25,1.2617]
[1745024918516,8.1898712,134.93,134.25,1.2617]
[1745024926221,38.94552808,134.94,134.25,1.2617]
[1745024926406,8.1898712,134.93,134.25,1.2617]
[1745024931528,38.94552808,134.94,134.25,1.2617]
[1745024931710,8.1898712,134.93,134.25,1.2617]
[1745024936831,38.94552808,134.94,134.25,1.2617]
[1745024937019,8.1898712,134.93,134.25,1.2617]
[1745024945137,29.1678689,134.94,134.25,1.2617]
[1745024945315,8.1898712,134.93,134.25,1.2617]
[1745024948341,14.2419252,134.93,134.25,1.2617]
[1745024948638,8.1898712,134.93,134.25,1.2617]
[1745024953757,38.61527767,134.94,134.25,1.2617]
[1745024953940,8.1898712,134.93,134.25,1.2617]
[1745024959060,38.61527767,134.94,134.25,1.2617]
[1745024959260,8.1898712,134.93,134.25,1.2617]
[1745024967862,8.1898712,134.93,133.42,8.9348043]
[1745024968063,8.1898712,134.93,133.42,12.56929952]
[1745024969567,8.1898712,134.93,133.42,18.7099522]
[1745024974679,38.61527767,134.94,133.42,9.7751479]
[1745024974877,8.1898712,134.93,133.43,8.9348043]
[1745024984195,38.61527767,134.94,133.42,9.7006871]
[1745024984392,8.1898712,134.93,133.43,8.9348043]
[1745024994316,38.61527767,134.94,133.42,9.7898782]
[1745024994509,8.1898712,134.93,133.43,8.9348043]
[1745025002623,70.02212165,134.94,133.42,9.85741764]
[1745025002821,8.1898712,134.93,133.43,8.9348043]
[1745025012126,60.57471288,134.94,133.42,9.55800597]
[1745025012320,8.19795095,134.93,133.43,8.92672455]
[1745025019441,26.53380095,134.93,133.43,8.92672455]
[1745025024544,18.33585,134.93,133.42,9.79417636]
[1745025024740,8.19795095,134.92,133.43,8.92672455]
[1745025025233,8.19795095,134.92,133.44,0.22183099]
[1745025025433,8.19795095,134.92,133.45,8.92672455]
[1745025030749,18.33585,134.93,133.44,0.22183099]
[1745025031056,8.19795095,134.92,133.45,8.92672455]
[1745025039853,8.19795095,134.93,133.45,8.92672455]
[1745025044955,41.61021488,134.94,133.44,0.22183099]
[1745025045256,8.19795095,134.93,133.45,8.92672455]
[1745025057167,41.61021488,134.94,133.44,0.22183099]
[1745025057350,8.19795095,134.93,133.45,8.92672455]
[1745025064488,41.61021488,134.94,133.42,9.80390613]
[1745025064790,8.19795095,134.93,133.43,8.92672455]
[1745025071593,31.40684398,134.94,133.42,9.71287771]
[1745025071796,8.19795095,134.93,133.43,8.92672455]
[1745025080399,41.57681715,134.94,133.42,9.76294611]
[1745025080585,8.19795095,134.93,133.43,8.92672455]
[1745025084804,8.19795095,134.93,133.44,0.22183099]
[1745025085100,8.19795095,134.93,133.45,8.92672455]
[1745025089009,8.19795095,134.93,133.46,0.22179774]
[1745025089202,8.19795095,134.93,133.47,8.92672455]
[1745025091613,8.19795095,134.93,133.48,0.22176451]
[1745025091907,8.19795095,134.93,133.49,28.76161647]
[1745025096411,8.19795095,134.93,133.5,22.337217]
[1745025096600,8.19795095,134.93,133.51,8.92672455]
[1745025102222,41.57681715,134.94,133.5,22.337217]
[1745025102423,8.19795095,134.93,133.5,31.26394155]
[1745025102622,8.19795095,134.93,133.51,8.92672455]
[1745025107734,41.57681715,134.94,133.5,22.337217]
[1745025107937,8.19795095,134.93,133.5,22.337217]
[1745025113046,41.57681715,134.94,133.5,22.337217]
[1745025113230,8.19795095,134.93,133.5,22.337217]
[1745025113647,8.19795095,134.93,133.5,31.26394155]
[1745025115249,8.19795095,134.93,133.51,8.92672455]
[1745025121054,10.16997317,134.94,133.49,19.83489192]
[1745025121351,8.19795095,134.93,133.5,8.92672455]
[1745025126448,43.1013257,134.94,133.49,19.83489192]
[1745025126649,8.19795095,134.93,133.5,8.92672455]
[1745025131765,43.1013257,134.94,133.49,19.83489192]
[1745025131961,8.19795095,134.93,133.5,8.92672455]
[1745025137068,43.1013257,134.94,133.49,19.83489192]
[1745025137365,8.19795095,134.93,133.5,8.92672455]
[1745025144782,43.1013257,134.94,133.49,19.83489192]
[1745025145079,8.19795095,134.93,133.5,8.92672455]
[1745025150212,43.1013257,134.94,133.49,19.83489192]
[1745025150394,8.19795095,134.93,133.49,19.83489192]
[1745025150594,8.19795095,134.93,133.49,28.76161647]
[1745025151212,8.19795095,134.93,133.5,8.92672455]
[1745025152211,8.19795095,134.93,133.51,0.22171468]
[1745025152406,8.19795095,134.93,133.51,9.14843923]
[1745025153620,8.19795095,134.93,133.52,8.92672455]
[1745025157721,8.19795095,134.93,133.51,0.22171468]
[1745025157910,8.19795095,134.93,133.51,9.14843923]
[1745025158418,8.19795095,134.93,133.52,8.92672455]
[1745025163525,43.1013257,134.94,133.51,0.22171468]
[1745025163725,8.19795095,134.93,133.51,9.14843923]
[1745025163920,8.19795095,134.93,133.52,8.92672455]
[1745025167427,8.19795095,134.93,133.51,0.22171468]
[1745025172544,43.1013257,134.94,133.51,0.22171468]
[1745025172742,28.91890463,134.93,133.51,0.22171468]
[1745025173138,9.08401263,134.93,133.51,0.22171468]
[1745025178245,43.1013257,134.94,133.51,0.22171468]
[1745025178545,9.08401263,134.93,133.51,0.22171468]
[1745025184858,43.1013257,134.94,133.51,0.22171468]
[1745025185149,9.08401263,134.93,133.51,0.22171468]
[1745025186952,9.08401263,134.93,133.51,20.05660668]
[1745025190458,9.08401263,134.93,133.52,0.22169807]
[1745025198593,32.93135253,134.94,133.52,0.22169807]
[1745025198764,9.08401263,134.93,133.52,0.22169807]
[1745025206082,42.09883631,134.94,133.52,0.22169807]
[1745025206374,9.08401263,134.93,133.52,0.22169807]
[1745025217180,42.09883631,134.94,133.52,0.22169807]
[1745025217370,9.08401263,134.93,133.52,0.22169807]
[1745025222483,42.09883631,134.94,133.52,0.22169807]
[1745025222684,9.08401263,134.93,133.52,0.22169807]
[1745025231996,9.08401263,134.93,133.45,0.063]
[1745025237107,42.09883631,134.94,133.45,0.063]
[1745025237306,9.08401263,134.93,133.45,0.063]
[1745025247215,9.16748378,134.94,133.45,0.063]
[1745025247516,9.08401263,134.93,133.45,0.063]
[1745025254225,40.67102637,134.94,133.45,0.063]
[1745025254413,9.08401263,134.93,133.45,0.063]
[1745025267135,40.67102637,134.94,133.45,0.063]
[1745025267433,9.08401263,134.93,133.45,0.063]
[1745025272538,40.67102637,134.94,133.45,0.063]
[1745025272739,49.755039,134.94,133.45,0.063]
[1745025273538,9.08401263,134.93,133.45,0.063]
[1745025275639,40.67102637,134.94,133.45,0.063]
[1745025276726,9.08401263,134.93,133.45,0.063]
[1745025278734,40.67102637,134.94,133.45,0.063]
[1745025288064,9.08401263,134.93,133.45,0.063]
[1745025288461,40.67102637,134.94,133.45,0.063]
[1745025292171,9.16748378,134.94,133.45,0.063]
[1745025298573,9.08401263,134.93,133.45,0.063]
[1745025300172,37.34031647,134.94,133.45,0.063]
[1745025301376,9.08401263,134.93,133.45,0.063]
[1745025301886,37.34031647,134.94,133.45,0.063]
[1745025302062,46.4243291,134.94,133.45,0.063]
[1745025304173,37.34031647,134.94,133.45,0.063]
[1745025313990,9.708606,134.93,133.45,0.063]
[1745025315475,18.79261863,134.93,133.45,0.063]
[1745025315675,9.08401263,134.92,133.45,0.063]
[1745025316191,9.708606,134.93,133.45,0.063]
[1745025316493,18.79261863,134.93,133.45,0.063]
[1745025317093,9.708606,134.93,133.45,0.063]
[1745025320893,18.79261863,134.93,133.45,0.063]
[1745025321297,9.708606,134.93,133.45,0.063]
[1745025327899,28.17283269,134.94,133.45,0.063]
[1745025354643,23.6315785,134.96,133.45,0.063]
[1745025382062,23.6315785,134.96,133.45,8.10366287]
[1745025382250,23.6315785,134.96,133.46,8.04066287]
[1745025382446,23.6315785,134.96,133.46,24.7960743]
[1745025387763,23.6315785,134.96,133.46,16.75541143]
[1745025415803,13.931,134.96,133.46,16.75541143]
[1745025418895,17.72512333,134.96,133.46,16.75541143]
[1745025420301,23.75547442,134.96,133.46,22.83939742]
[1745025423508,23.75547442,134.96,133.47,0.22178113]
[1745025488397,23.75547442,134.96,133.48,8.04066287]
[1745025489193,23.75547442,134.96,133.47,17.64774431]
[1745025499201,23.75547442,134.96,133.48,0.22176451]
[1745025523638,23.75547442,134.96,133.48,8.27047681]
[1745025523921,23.75547442,134.96,133.48,0.22176451]
[1745025528131,23.75547442,134.96,133.48,8.27047681]
[1745025530533,23.75547442,134.96,133.49,0.2217479]
[1745025536640,23.75547442,134.96,133.48,0.22176451]
[1745025539238,41.18143842,134.96,133.48,0.22176451]
[1745025539424,23.75547442,134.96,133.48,0.22176451]
[1745025539739,41.18143742,134.96,133.48,0.22176451]
[1745025540540,31.356963,134.96,133.48,0.22176451]
[1745025551933,13.931,134.96,133.48,0.22176451]
[1745025574779,17.73840997,134.96,133.48,0.22176451]
[1745025581685,23.84145179,134.96,133.48,6.22231432]
[1745025584590,23.84145179,134.96,133.49,0.2217479]
[1745025593500,23.84145179,134.96,133.5,17.425963]
[1745025665762,23.84145179,134.96,133.51,0.22171468]
[1745025672769,23.84145179,134.96,133.49,0.2217479]
[1745025675670,23.84145179,134.96,133.5,8.0487123]
[1745025675869,23.84145179,134.96,133.5,27.35743682]
[1745025684275,23.84145179,134.96,133.5,19.30872452]
[1745025692886,43.15017579,134.96,133.5,19.30872452]
[1745025694285,43.15017579,134.96,133.51,0.22171468]
[1745025695990,23.84145179,134.96,133.51,0.22171468]
[1745025696383,43.15017679,134.96,133.51,0.22171468]
[1745025704001,23.84145179,134.96,133.51,0.22171468]
[1745025704296,43.15017679,134.96,133.51,0.22171468]
[1745025704603,23.84145179,134.96,133.51,0.22171468]
[1745025705398,43.15017679,134.96,133.51,0.22171468]
[1745025705695,23.84145179,134.96,133.51,0.22171468]
[1745025705904,43.15017679,134.96,133.51,0.22171468]
[1745025706197,23.84145179,134.96,133.51,0.22171468]
[1745025706497,43.15017679,134.96,133.51,0.22171468]
[1745025706800,23.84145179,134.96,133.51,0.22171468]
[1745025707297,43.15017679,134.96,133.51,0.22171468]
[1745025707596,23.84145179,134.96,133.51,0.22171468]
[1745025708100,43.15017679,134.96,133.51,0.22171468]
[1745025708400,23.84145179,134.96,133.51,0.22171468]
[1745025709017,43.15017579,134.96,133.51,0.22171468]
[1745025709321,23.84145179,134.96,133.51,0.22171468]
[1745025709818,43.15017579,134.96,133.51,0.22171468]
[1745025710218,23.84145179,134.96,133.51,0.22171468]
[1745025711419,43.15017679,134.96,133.51,0.22171468]
[1745025711719,23.84145179,134.96,133.51,0.22171468]
[1745025712025,43.15017679,134.96,133.51,0.22171468]
[1745025712320,23.84145179,134.96,133.51,0.22171468]
[1745025713023,43.15017679,134.96,133.51,0.22171468]
[1745025714527,23.84145179,134.96,133.51,0.22171468]
[1745025714824,43.15017679,134.96,133.51,0.22171468]
[1745025726037,23.84145179,134.96,133.51,0.22171468]
[1745025726635,43.15017679,134.96,133.51,0.22171468]
[1745025739357,43.15017679,134.96,133.51,19.53043968]
[1745025742255,23.84145179,134.96,133.51,19.53043968]
[1745025742552,43.37189179,134.96,133.51,19.53043968]
[1745025743450,23.84145179,134.96,133.51,19.53043968]
[1745025743850,43.37189179,134.96,133.51,19.53043968]
[1745025756265,43.37189179,134.96,133.52,0.22169807]
[1745025760268,43.37189179,134.96,133.53,19.308725]
[1745025762473,23.84145179,134.96,133.53,19.308725]
[1745025762770,43.15017679,134.96,133.53,19.308725]
[1745025763071,23.84145179,134.96,133.53,19.308725]
[1745025764473,43.15017679,134.96,133.53,19.308725]
[1745025764976,43.15017679,134.96,133.54,0.22166487]
[1745025791712,43.15017679,134.96,133.54,19.53038987]
[1745025793016,43.15017679,134.96,133.54,19.308725]
[1745025795519,43.15017679,134.96,133.55,0.22164827]
[1745025796015,23.84145179,134.96,133.55,0.22164827]
[1745025796411,43.15017679,134.96,133.55,0.22164827]
[1745025815164,43.15017679,134.96,133.56,19.308725]
[1745025815362,43.15017679,134.96,133.56,36.06048585]
[1745025823773,43.15017679,134.96,133.56,16.75176085]
[1745025823950,23.84145179,134.96,133.57,0.22161508]
[1745025824867,40.59321179,134.96,133.57,16.97337508]
[1745025832072,40.59321179,134.96,133.57,16.75176]
[1745025834676,40.59321179,134.96,133.58,0.22159849]
[1745025835475,40.59321179,134.96,133.59,16.751761]
[1745025845988,23.84145179,134.96,133.59,16.751761]
[1745025857494,23.84145179,134.96,133.6,0.22156532]
[1745025858093,23.84145179,134.96,133.6,16.97332632]
[1745025860100,23.84145179,134.96,133.61,0.22154874]
[1745025872317,23.84145179,134.96,133.62,16.751761]
[1745025917659,40.59321279,134.96,133.62,16.751761]
[1745025917958,23.84145179,134.96,133.62,16.751761]
[1745025918141,40.59321279,134.96,133.62,16.751761]
[1745025918454,23.84145179,134.96,133.62,16.751761]
[1745025919458,40.59321279,134.96,133.62,16.751761]
[1745025923973,23.84145179,134.96,133.62,16.751761]
[1745025924472,40.59321279,134.96,133.62,16.751761]
[1745025924770,23.84145179,134.96,133.62,16.751761]
[1745025925777,40.59321279,134.96,133.62,16.751761]
[1745025925958,23.84145179,134.96,133.62,16.751761]
[1745025926273,40.59321279,134.96,133.62,16.751761]
[1745025927978,23.84145179,134.96,133.62,16.751761]
[1745025928374,40.59321279,134.96,133.62,16.751761]
[1745025928675,23.84145179,134.96,133.62,16.751761]
[1745025929076,40.59321279,134.96,133.62,16.751761]
[1745025931991,23.84145179,134.96,133.62,16.751761]
[1745025932375,40.59321279,134.96,133.62,16.751761]
[1745025933978,23.84145179,134.96,133.62,16.751761]
[1745025934575,40.59321279,134.96,133.62,16.751761]
[1745025934873,23.84145179,134.96,133.62,16.751761]
[1745025935878,40.59321279,134.96,133.62,16.751761]
[1745025936480,23.84145179,134.96,133.62,16.751761]
[1745025938079,40.59321279,134.96,133.62,16.751761]
[1745025955106,23.84145179,134.96,133.62,16.751761]
[1745025955395,40.59321279,134.96,133.62,16.751761]
[1745025960002,23.84145179,134.96,133.62,16.751761]
[1745025995439,17.73840997,134.96,133.62,16.751761]
[1745025997236,23.78214854,134.96,133.62,16.751761]
[1745026021153,40.53390954,134.96,133.62,16.751761]
[1745026032056,23.78214854,134.96,133.62,16.751761]
[1745026032357,40.53390954,134.96,133.62,16.751761]
[1745026032553,23.78214854,134.96,133.62,16.751761]
[1745026062706,17.73840997,134.96,133.62,16.751761]
[1745026068115,23.67247021,134.96,133.62,16.751761]
[1745026113262,17.73840997,134.96,133.62,16.751761]
[1745026119872,23.66682883,134.96,133.62,22.78610824]
[1745026124076,23.66682883,134.96,133.62,6.03434724]
[1745026124268,23.66682883,134.96,133.63,22.267583]
[1745026173941,45.93441183,134.96,133.63,22.267583]
[1745026176143,23.66682883,134.96,133.63,22.267583]
[1745026177343,45.93441183,134.96,133.63,22.267583]
[1745026177544,23.66682883,134.96,133.63,22.267583]
[1745026178041,45.93441183,134.96,133.63,22.267583]
[1745026180047,23.66682883,134.96,133.63,22.267583]
[1745026180946,45.93441183,134.96,133.63,22.267583]
[1745026181247,23.66682883,134.96,133.63,22.267583]
[1745026182047,45.93441183,134.96,133.63,22.267583]
[1745026182349,23.66682883,134.96,133.63,22.267583]
[1745026183153,45.93441183,134.96,133.63,22.267583]
[1745026183449,23.66682883,134.96,133.63,22.267583]
[1745026183650,45.93441183,134.96,133.63,22.267583]
[1745026183950,23.66682883,134.96,133.63,22.267583]
[1745026184249,45.93441183,134.96,133.63,22.267583]
[1745026184651,23.66682883,134.96,133.63,22.267583]
[1745026184846,45.93441183,134.96,133.63,22.267583]
[1745026185148,23.66682883,134.96,133.63,22.267583]
[1745026185452,45.93441183,134.96,133.63,22.267583]
[1745026185754,23.66682883,134.96,133.63,22.267583]
[1745026186051,45.93441183,134.96,133.63,22.267583]
[1745026186454,23.66682883,134.96,133.63,22.267583]
[1745026186953,45.93441183,134.96,133.63,22.267583]
[1745026192054,23.66682883,134.96,133.63,22.267583]
[1745026192356,45.93441183,134.96,133.63,22.267583]
[1745026196061,23.66682883,134.96,133.63,22.267583]
[1745026226186,17.73840997,134.96,133.63,22.267583]
[1745026227884,23.67443548,134.96,133.63,22.267583]
[1745026258023,17.73840997,134.96,133.63,22.267583]
[1745026261222,23.64393369,134.96,133.63,22.267583]
[1745026267126,45.91151669,134.96,133.63,22.267583]
[1745026272231,23.64393369,134.96,133.63,22.267583]
[1745026272532,45.91151669,134.96,133.63,22.267583]
[1745026272830,23.64393369,134.96,133.63,22.267583]
[1745026273129,45.91151669,134.96,133.63,22.267583]
[1745026273431,23.64393369,134.96,133.63,22.267583]
[1745026273732,45.91151669,134.96,133.63,22.267583]
[1745026274130,23.64393369,134.96,133.63,22.267583]
[1745026274330,45.91151669,134.96,133.63,22.267583]
[1745026275233,23.64393369,134.96,133.63,22.267583]
[1745026275534,45.91151669,134.96,133.63,22.267583]
[1745026275734,23.64393369,134.96,133.63,22.267583]
[1745026276535,45.91151669,134.96,133.63,22.267583]
[1745026276736,23.64393369,134.96,133.63,22.267583]
[1745026277035,45.91151669,134.96,133.63,22.267583]
[1745026277435,23.64393369,134.96,133.63,22.267583]
[1745026277934,45.90821069,134.96,133.63,22.267583]
[1745026280039,23.64393369,134.96,133.63,22.267583]
[1745026280536,45.90821069,134.96,133.63,22.267583]
[1745026280723,23.64393369,134.96,133.63,22.267583]
[1745026281039,45.90821069,134.96,133.63,22.267583]
[1745026281537,23.64393369,134.96,133.63,22.267583]
[1745026281732,45.90821069,134.96,133.63,22.267583]
[1745026282037,23.64393369,134.96,133.63,22.267583]
[1745026282338,45.90820969,134.96,133.63,22.267583]
[1745026282641,23.64393369,134.96,133.63,22.267583]
[1745026283536,45.90821069,134.96,133.63,22.267583]
[1745026283739,23.64393369,134.96,133.63,22.267583]
[1745026284039,45.90821069,134.96,133.63,22.267583]
[1745026284338,23.64393369,134.96,133.63,22.267583]
[1745026401778,23.64393369,134.96,133.64,9.48224263]
[1745026415691,9.71293369,134.96,133.64,9.48224263]
[1745026415884,0.03,134.99,133.64,9.48224263]
[1745026417090,0.03,134.99,133.65,0.22148243]
[1745026417391,5.86764261,134.99,133.66,9.92279819]
[1745026417591,0.03,134.99,133.66,9.92279819]
[1745026418494,3.74518629,134.99,133.66,9.92279819]
[1745026419290,3.74518629,134.99,133.66,12.88674919]
[1745026419601,3.74518629,134.99,133.66,9.92279819]
[1745026420693,3.74518629,134.99,133.66,13.66798419]
[1745026421791,9.57142176,134.99,133.66,13.66798419]
[1745026423193,9.57142176,134.99,133.67,0.22144929]
[1745026423394,9.57142176,134.99,133.68,9.92279819]
[1745026424396,9.57142176,134.99,133.69,9.571422]
[1745026424596,9.57142176,134.99,133.7,9.92279819]
[1745026442115,9.57142176,134.99,133.71,0.22138304]
[1745026442322,9.57142176,134.99,133.72,9.92279819]
[1745026444618,9.57142176,134.99,133.73,0.22134994]
[1745026444808,9.57142176,134.99,133.74,9.92279819]
[1745026445106,9.57142176,134.99,133.74,28.74680551]
[1745026446423,9.57142176,134.99,133.75,9.571422]
[1745026446623,9.57142176,134.99,133.76,9.92279819]
[1745026452425,9.57142176,134.99,133.76,19.49421919]
[1745026472134,9.57142176,134.99,133.77,0.22128375]
[1745026472334,9.57142176,134.99,133.78,9.92279819]
[1745026472535,9.57142176,134.99,133.78,29.67567162]
[1745026472947,9.57142176,134.99,133.79,9.571421]
[1745026473152,9.57142176,134.99,133.8,9.92279819]
[1745026474174,19.14284376,134.99,133.8,9.92279819]
[1745026474779,19.14284376,134.99,133.81,0.2212176]
[1745026474965,19.14284376,134.99,133.82,9.92279819]